bitfinex/quotes_BTCUSD_20240611
["timestamp","ask_amount","ask_price","bid_price","bid_amount"]
[1718089175067,0.1,67657.0,67656.0,0.00035381]
[1718089175312,0.3677,67657.0,67656.0,0.00035381]
[1718089175741,0.5877,67657.0,67656.0,0.00035381]
[1718089176262,0.22,67652.0,67641.0,0.0121306]
[1718089176513,0.3677,67657.0,67628.0,0.5]
[1718089176514,0.22,67646.0,67628.0,0.5]
[1718089176746,0.2677,67633.0,67630.0,0.14431993]
[1718089176977,0.1,67632.0,67630.0,0.14431993]
[1718089178333,0.023,67631.0,67630.0,0.14431993]
[1718089178775,0.023,67631.0,67617.0,0.07215996]
[1718089178996,0.2142,67626.0,67618.0,0.20337723]
[1718089179209,0.123,67625.0,67618.0,0.89025023]
[1718089179428,0.123,67625.0,67624.0,0.07215996]
[1718089179654,0.123,67625.0,67624.0,0.21647989]
[1718089179914,0.1,67625.0,67624.0,0.27756934]
[1718089180173,0.1,67625.0,67624.0,0.55356934]
[1718089180401,0.1,67627.0,67624.0,0.55356934]
[1718089180620,0.1,67627.0,67626.0,0.14431993]
[1718089180837,0.1,67627.0,67626.0,0.20337723]
[1718089181438,0.123,67627.0,67626.0,0.20337723]
[1718089181670,0.123,67627.0,67626.0,0.89486623]
[1718089181849,0.04991532,67640.0,67626.0,0.89486623]
[1718089182050,0.2142,67637.0,67632.0,0.14431993]
[1718089182258,0.2142,67637.0,67633.0,0.01443199]
[1718089182490,0.2142,67637.0,67634.0,0.14431993]
[1718089183131,0.1,67636.0,67634.0,0.14431993]
[1718089183582,0.023,67635.0,67634.0,0.14431993]
[1718089184309,0.023,67635.0,67634.0,0.25680555]
[1718089184623,0.023,67635.0,67634.0,0.2839293]
[1718089188635,0.023,67635.0,67634.0,0.34676919]
[1718089189008,0.023,67635.0,67634.0,1.42090819]
[1718089189403,0.023,67637.0,67634.0,1.35827319]
[1718089189610,0.023,67637.0,67635.0,0.17663818]
[1718089189821,0.023,67637.0,67636.0,0.34049182]
[1718089190026,0.023,67637.0,67636.0,0.84049182]
[1718089190251,0.023,67637.0,67636.0,2.90990282]
[1718089190460,0.023,67643.0,67636.0,2.9098921]
[1718089190661,0.023,67643.0,67639.0,0.14431993]
[1718089190870,0.023,67643.0,67640.0,0.17662746]
[1718089191071,0.023,67643.0,67641.0,0.32094739]
[1718089191317,0.023,67643.0,67642.0,0.17662746]
[1718089191564,0.0491823,67650.0,67643.0,0.5]
[1718089191565,0.2372,67649.0,67643.0,0.5]
[1718089191763,0.2372,67649.0,67644.0,0.33537938]
[1718089191983,0.2372,67649.0,67645.0,0.17662746]
[1718089192191,0.2372,67649.0,67646.0,0.32094739]
[1718089192406,0.2372,67649.0,67647.0,0.17662746]
[1718089192611,0.2372,67649.0,67648.0,0.32094739]
[1718089192817,0.2372,67649.0,67648.0,0.34807114]
[1718089193029,0.3372,67649.0,67648.0,0.34807114]
[1718089197102,0.1,67649.0,67648.0,0.34807114]
[1718089197307,0.2142,67654.0,67648.0,0.34807114]
[1718089197522,0.2142,67654.0,67652.0,0.14431993]
[1718089197728,0.2142,67653.0,67652.0,0.14431993]
[1718089197941,0.2142,67658.0,67652.0,0.31867718]
[1718089198153,0.2879,67674.0,67649.0,0.01953371]
[1718089198154,0.04900892,67666.0,67654.0,0.14431993]
[1718089198365,0.04900892,67666.0,67655.0,0.17434882]
[1718089198366,0.2142,67660.0,67655.0,0.17434882]
[1718089198586,0.2142,67660.0,67656.0,0.31866875]
[1718089198587,0.023,67659.0,67656.0,0.31866875]
[1718089198791,0.023,67659.0,67657.0,0.20986904]
[1718089199028,0.023,67659.0,67658.0,0.3200529]
[1718089199226,0.123,67659.0,67658.0,0.3200529]
[1718089199644,0.123,67659.0,67658.0,0.9742749]
[1718089199850,0.1,67663.0,67658.0,1.03936772]
[1718089200070,0.023,67662.0,67659.0,0.20715139]
[1718089200277,0.023,67662.0,67660.0,0.17573297]
[1718089200510,0.023,67662.0,67661.0,0.3200529]
[1718089200945,0.023,67662.0,67661.0,0.31940375]
[1718089200946,0.2372,67662.0,67661.0,0.31940375]
[1718089201172,0.3372,67662.0,67661.0,0.11225236]
[1718089201395,0.02,67650.0,67640.0,0.08827105]
[1718089201629,0.02,67636.0,67630.0,0.04415877]
[1718089201844,0.02,67636.0,67618.0,0.78309787]
[1718089201845,0.7123,67631.0,67617.0,0.059129]
[1718089202052,0.7123,67631.0,67618.0,0.20301376]
[1718089202053,0.2142,67620.0,67618.0,0.20301376]
[1718089202277,0.1,67630.0,67619.0,0.19101544]
[1718089202491,0.1,67630.0,67620.0,0.04669551]
[1718089202708,0.5055,67629.0,67621.0,0.14431993]
[1718089202956,0.2142,67622.0,67621.0,0.14431993]
[1718089203175,0.3372,67622.0,67621.0,0.1597848]
[1718089203593,0.3372,67622.0,67621.0,0.20647335]
[1718089203824,0.3372,67622.0,67621.0,0.1597848]
[1718089204727,0.3372,67622.0,67621.0,0.01546487]
[1718089204949,0.3908,67622.0,67613.0,0.01813827]
[1718089205162,0.123,67621.0,67614.0,0.14431993]
[1718089207084,0.023,67621.0,67614.0,0.14431993]
[1718089207295,0.123,67625.0,67614.0,0.14431993]
[1718089207744,0.2678,67619.0,67614.0,0.14431993]
[1718089208019,0.023,67618.0,67615.0,0.01443199]
[1718089208222,0.123,67618.0,67616.0,0.14431993]
[1718089208878,0.02,67616.0,67615.0,0.01443199]
[1718089209096,0.7681,67611.0,67600.0,0.48037]
[1718089209308,0.2678,67606.0,67601.0,0.14431993]
[1718089209509,0.123,67605.0,67601.0,0.14431993]
[1718089209736,0.02,67614.0,67600.0,0.00857]
[1718089209737,0.486,67622.0,67604.0,0.14431993]
[1718089209971,0.72375979,67621.0,67607.0,0.14431993]
[1718089210193,0.3908,67621.0,67607.0,0.14431993]
[1718089210452,0.43295979,67620.0,67608.0,0.221525]
[1718089210669,0.3908,67621.0,67609.0,0.14431993]
[1718089210670,0.02,67616.0,67609.0,0.14431993]
[1718089210928,0.2678,67610.0,67609.0,0.14431993]
[1718089211137,0.3678,67610.0,67609.0,0.16117695]
[1718089211332,0.3908,67610.0,67609.0,0.16117695]
[1718089214129,0.3908,67610.0,67609.0,0.01685702]
[1718089214524,0.3908,67610.0,67608.0,0.00086]
[1718089214739,0.123,67609.0,67608.0,0.14517993]
[1718089214973,0.123,67609.0,67608.0,0.00086]
[1718089215188,0.3894,67609.0,67608.0,0.00086]
[1718089217388,1.3321,67609.0,67608.0,0.00086]
[1718089220918,1.56159596,67609.0,67608.0,0.00086]
[1718089223610,1.70591589,67609.0,67608.0,0.00086]
[1718089223775,0.92121296,67601.0,67600.0,0.00857]
[1718089223975,1.31201296,67601.0,67600.0,0.00857]
[1718089225187,1.59601296,67601.0,67600.0,0.00857]
[1718089226224,1.74944905,67601.0,67600.0,0.00857]
[1718089226654,1.74944905,67601.0,67589.0,0.00857]
[1718089226655,0.22,67590.0,67589.0,0.00857]
[1718089226871,0.3375,67590.0,67589.0,0.00857]
[1718089227106,0.5575,67590.0,67589.0,0.00857]
[1718089227744,0.343,67590.0,67589.0,0.00857]
[1718089229270,0.123,67590.0,67589.0,0.00857]
[1718089229499,0.2375,67590.0,67589.0,0.00857]
[1718089229751,0.3375,67590.0,67589.0,0.00857]
[1718089231438,0.3575,67590.0,67589.0,0.00857]
[1718089231686,0.5575,67590.0,67589.0,0.00857]
[1718089231888,0.63908696,67590.0,67587.0,0.00857]
[1718089232096,0.22,67588.0,67587.0,0.00857]
[1718089232305,0.47344249,67588.0,67587.0,0.00857]
[1718089232473,0.57802945,67588.0,67587.0,0.00857]
[1718089232675,0.57802945,67588.0,67577.0,0.00857]
[1718089232676,0.02,67579.0,67577.0,0.00857]
[1718089232940,0.2575,67578.0,67577.0,0.00857]
[1718089233152,0.4575,67578.0,67577.0,0.00857]
[1718089233383,0.5575,67578.0,67573.0,0.00857]
[1718089233599,0.02,67569.0,67566.0,0.00857]
[1718089233827,0.2345,67569.0,67566.0,0.00857]
[1718089234029,0.2575,67569.0,67566.0,0.00857]
[1718089234661,0.4575,67569.0,67566.0,0.00857]
[1718089235564,0.2575,67569.0,67566.0,0.00857]
[1718089235772,0.4575,67569.0,67566.0,0.00857]
[1718089236000,0.2375,67569.0,67566.0,0.00857]
[1718089236203,0.2555741,67569.0,67566.0,0.00857]
[1718089236477,0.4555741,67569.0,67566.0,0.00857]
[1718089237357,0.60905826,67569.0,67566.0,0.00857]
[1718089238009,0.40905826,67569.0,67566.0,0.00857]
[1718089238225,1.02685426,67569.0,67566.0,0.00857]
[1718089238433,1.02685426,67569.0,67544.0,0.4714]
[1718089238434,0.02,67557.0,67544.0,0.4714]
[1718089238662,0.08158696,67565.0,67544.0,0.4714]
[1718089238663,0.02,67555.0,67545.0,0.14431993]
[1718089238896,0.2145,67546.0,67545.0,0.14431993]
[1718089239580,0.2375,67546.0,67545.0,0.14431993]
[1718089240323,0.2375,67546.0,67539.0,0.4641]
[1718089240555,0.02,67544.0,67541.0,0.14431993]
[1718089240783,0.223,67545.0,67542.0,0.01528899]
[1718089240784,0.023,67543.0,67542.0,0.01528899]
[1718089241014,0.2145,67543.0,67542.0,0.15960892]
[1718089241251,0.2375,67543.0,67542.0,0.01528899]
[1718089241478,0.2375,67543.0,67532.0,0.76997]
[1718089241698,0.023,67542.0,67541.0,0.14431993]
[1718089244626,0.023,67542.0,67534.0,0.01788381]
[1718089244834,0.22,67541.0,67534.0,0.01788381]
[1718089245067,0.243,67541.0,67534.0,0.01788381]
[1718089247444,0.243,67541.0,67532.0,0.00857]
[1718089247888,0.39654464,67541.0,67532.0,0.00857]
[1718089248107,0.54460264,67541.0,67532.0,0.00857]
[1718089248336,0.39654464,67541.0,67532.0,0.00857]
[1718089248589,0.17654464,67541.0,67532.0,0.00857]
[1718089248833,0.39654464,67541.0,67532.0,0.00857]
[1718089249060,0.02,67538.0,67532.0,0.00857]
[1718089249275,0.2145,67533.0,67532.0,0.00857]
[1718089249527,0.2145,67533.0,67532.0,0.15288993]
[1718089249761,0.2375,67533.0,67532.0,0.16998742]
[1718089250016,0.2375,67533.0,67532.0,0.26998742]
[1718089253317,0.39104248,67533.0,67532.0,0.26998742]
[1718089253942,0.3910425,67533.0,67532.0,0.26998742]
[1718089255176,0.3910025,67533.0,67532.0,0.26998742]
[1718089256577,0.23746,67533.0,67532.0,0.26998742]
[1718089257008,0.39100397,67533.0,67532.0,0.26998742]
[1718089257240,0.07170104,67546.0,67532.0,0.72898742]
[1718089257483,0.07170104,67546.0,67533.0,0.31902717]
[1718089257484,0.36802894,67545.0,67533.0,0.31902717]
[1718089257693,0.15352894,67544.0,67533.0,0.69319417]
[1718089257903,0.2145,67545.0,67533.0,0.69319417]
[1718089258127,0.2145,67545.0,67534.0,0.2875]
[1718089258349,0.2145,67545.0,67535.0,0.27266195]
[1718089258580,0.04968651,67546.0,67541.0,0.5]
[1718089258831,0.2899,67565.0,67541.0,0.5]
[1718089258832,0.43295979,67573.0,67554.0,0.5]
[1718089259037,0.2145,67566.0,67554.0,0.5]
[1718089259261,0.2145,67566.0,67555.0,0.11709749]
[1718089259473,0.2,67572.0,67556.0,0.14431993]
[1718089259474,0.2145,67561.0,67556.0,0.14431993]
[1718089259685,0.2145,67561.0,67557.0,0.1]
[1718089259892,0.30158696,67574.0,67560.0,0.14431993]
[1718089259893,0.2145,67567.0,67560.0,0.14431993]
[1718089260157,0.2145,67562.0,67561.0,0.1]
[1718089260410,0.2145,67562.0,67561.0,0.31902717]
[1718089261723,0.02201453,67588.0,67561.0,0.31902717]
[1718089261724,0.55868696,67585.0,67561.0,0.31902717]
[1718089261940,0.43295979,67579.0,67565.0,0.5]
[1718089262159,0.2145,67581.0,67566.0,0.2736214]
[1718089262390,0.2145,67581.0,67566.0,0.27858085]
[1718089262604,0.2145,67576.0,67566.0,0.27858085]
[1718089262823,0.2145,67576.0,67567.0,0.14431993]
[1718089263035,0.2145,67576.0,67568.0,0.83581872]
[1718089263250,0.2145,67576.0,67570.0,0.14431993]
[1718089263468,0.4771,67591.0,67571.0,0.1]
[1718089263695,0.2145,67585.0,67571.0,0.24431993]
[1718089265017,0.08158696,67587.0,67571.0,0.24431993]
[1718089265018,0.2145,67579.0,67571.0,0.24431993]
[1718089265262,0.2145,67579.0,67572.0,0.07470724]
[1718089265488,0.2145,67579.0,67573.0,0.14431993]
[1718089265665,0.023,67578.0,67574.0,0.1]
[1718089265921,0.023,67578.0,67575.0,0.14431993]
[1718089266172,0.2145,67584.0,67576.0,0.1]
[1718089266173,0.023,67583.0,67576.0,0.1]
[1718089266412,0.023,67583.0,67577.0,0.17266195]
[1718089266628,0.023,67583.0,67578.0,0.24431993]
[1718089266837,0.023,67588.0,67580.0,0.5]
[1718089267054,0.10458696,67593.0,67581.0,0.14431993]
[1718089267694,0.10458696,67593.0,67582.0,0.1]
[1718089267695,0.023,67593.0,67582.0,0.1]
[1718089267913,0.2375,67593.0,67583.0,0.16141742]
[1718089268151,0.2375,67593.0,67584.0,0.1]
[1718089268325,0.2375,67593.0,67585.0,0.14431993]
[1718089268584,0.2375,67593.0,67586.0,0.1]
[1718089268809,0.2375,67593.0,67587.0,0.14431993]
[1718089269007,0.2375,67593.0,67588.0,0.02614174]
[1718089269278,0.2375,67593.0,67589.0,0.14431993]
[1718089270165,0.023,67593.0,67589.0,0.14431993]
[1718089270403,0.2145,67591.0,67589.0,0.14431993]
[1718089270653,0.22,67584.0,67583.0,0.01709749]
[1718089270900,0.22,67584.0,67579.0,0.04927343]
[1718089270901,0.2145,67584.0,67579.0,0.04927343]
[1718089271119,0.2375,67584.0,67579.0,0.14431993]
[1718089271348,0.2145,67584.0,67579.0,0.14431993]
[1718089271666,0.243,67583.0,67580.0,0.01905496]
[1718089271789,0.22,67581.0,67580.0,0.01905496]
[1718089272036,0.023,67583.0,67573.0,0.01432029]
[1718089272037,0.01,67578.0,67573.0,0.01432029]
[1718089272273,0.22,67575.0,67574.0,0.14431993]
[1718089272517,0.22,67575.0,67570.0,0.0672696]
[1718089272518,0.2145,67571.0,67570.0,0.0672696]
[1718089272727,0.2145,67571.0,67570.0,0.14431993]
[1718089272728,0.2375,67571.0,67570.0,0.14431993]
[1718089272948,0.2575,67571.0,67570.0,0.15875192]
[1718089273175,0.2375,67571.0,67570.0,0.01443199]
[1718089273392,0.2375,67571.0,67561.0,0.2873]
[1718089273604,0.023,67570.0,67562.0,0.14431993]
[1718089274043,0.08158696,67580.0,67567.0,0.14431993]
[1718089274267,0.2145,67578.0,67568.0,0.1]
[1718089274490,0.2,67587.0,67568.0,0.1]
[1718089274491,0.08158696,67596.0,67577.0,0.14431993]
[1718089274719,0.2145,67594.0,67579.0,0.63881993]
[1718089275165,0.4345,67594.0,67580.0,0.1]
[1718089275397,0.2145,67594.0,67583.0,0.14431993]
[1718089275659,0.4577,67614.0,67594.0,7.849e-05]
[1718089275660,0.08158696,67604.0,67594.0,7.849e-05]
[1718089275890,0.6577,67614.0,67595.0,0.43671993]
[1718089275891,0.2145,67603.0,67595.0,0.43671993]
[1718089276070,0.2145,67603.0,67596.0,0.49603199]
[1718089276238,0.2145,67603.0,67597.0,0.14431993]
[1718089277764,0.4577,67614.0,67597.0,0.14431993]
[1718089277765,0.2145,67609.0,67598.0,0.2372]
[1718089277963,0.2145,67609.0,67599.0,0.14431993]
[1718089278220,0.2145,67609.0,67600.0,0.19571476]
[1718089278351,0.2145,67609.0,67601.0,0.14431993]
[1718089278569,0.07753296,67612.0,67602.0,0.1]
[1718089278783,0.000946,67609.0,67603.0,0.14431993]
[1718089278999,0.000946,67609.0,67606.0,0.14431993]
[1718089279203,0.000946,67609.0,67603.0,0.1572]
[1718089279204,0.000946,67609.0,67608.0,0.89181993]
[1718089279679,0.000946,67609.0,67608.0,0.99181993]
[1718089279887,0.000946,67609.0,67608.0,3.90363493]
[1718089280099,0.000946,67609.0,67608.0,3.78718293]
[1718089280300,0.000946,67609.0,67608.0,0.99181993]
[1718089280514,0.000946,67609.0,67608.0,4.10013469]
[1718089280723,0.000946,67609.0,67608.0,1.08753469]
[1718089280930,0.009449,67630.0,67618.0,0.5]
[1718089280931,0.2145,67629.0,67618.0,0.5]
[1718089281137,0.43295979,67623.0,67622.0,0.4621]
[1718089281340,0.009449,67630.0,67622.0,0.4621]
[1718089281341,0.009449,67630.0,67622.0,0.70641993]
[1718089281581,0.2145,67629.0,67623.0,0.26875192]
[1718089282278,0.009449,67630.0,67627.0,0.14431993]
[1718089282497,0.009449,67630.0,67628.0,0.10099158]
[1718089282717,0.009449,67630.0,67629.0,0.14431993]
[1718089282953,0.009449,67630.0,67629.0,0.68663693]
[1718089283214,0.009449,67630.0,67629.0,0.78235169]
[1718089283421,0.009449,67630.0,67629.0,0.52476569]
[1718089283625,0.009449,67630.0,67629.0,0.34003469]
[1718089283833,0.009449,67630.0,67629.0,0.77521269]
[1718089284053,0.009449,67630.0,67629.0,0.34003469]
[1718089284289,0.009449,67630.0,67629.0,1.08083469]
[1718089286992,0.009449,67630.0,67629.0,1.18083469]
[1718089287209,0.000946,67641.0,67636.0,1.2737]
[1718089287445,0.000946,67641.0,67640.0,0.14431993]
[1718089287666,0.000946,67641.0,67640.0,0.25864022]
[1718089287920,0.009449,67661.0,67648.0,0.7737]
[1718089288134,0.009449,67661.0,67652.0,0.14431993]
[1718089288366,0.009449,67661.0,67652.0,0.24431993]
[1718089288586,0.009449,67661.0,67652.0,0.34003469]
[1718089289067,0.009449,67661.0,67658.0,0.5]
[1718089289308,0.009449,67661.0,67660.0,0.14431993]
[1718089289554,0.009449,67661.0,67660.0,0.24431993]
[1718089295397,0.009449,67661.0,67660.0,0.98393093]
[1718089295615,0.009449,67661.0,67660.0,0.26875192]
[1718089295834,0.009449,67661.0,67660.0,1.77774292]
[1718089296043,0.009449,67661.0,67660.0,0.26875192]
[1718089296267,0.009449,67661.0,67660.0,1.77774292]
[1718089297171,0.009449,67661.0,67660.0,0.83078292]
[1718089298792,0.009449,67661.0,67660.0,0.83049592]
[1718089305528,0.223349,67661.0,67660.0,0.73049592]
[1718089305753,0.009449,67661.0,67660.0,0.16846492]
[1718089306032,0.009449,67661.0,67660.0,0.91186492]
[1718089306645,0.223349,67661.0,67660.0,0.91186492]
[1718089306864,0.223349,67661.0,67660.0,0.16846492]
[1718089307082,0.2139,67663.0,67660.0,0.26846492]
[1718089307315,0.2139,67663.0,67662.0,0.14431993]
[1718089307567,0.2139,67663.0,67662.0,0.24431993]
[1718089307822,0.2139,67663.0,67662.0,0.39730193]
[1718089308026,0.2369,67663.0,67662.0,0.39730193]
[1718089308944,0.2139,67663.0,67662.0,0.39730193]
[1718089309163,0.2139,67663.0,67662.0,1.20863122]
[1718089310062,0.2139,67663.0,67662.0,0.44553122]
[1718089310554,0.2139,67663.0,67662.0,0.29254922]
[1718089310782,0.7303,67663.0,67662.0,0.29254922]
[1718089310994,1.2439,67663.0,67662.0,0.19254922]
[1718089311202,1.044846,67663.0,67662.0,0.14431993]
[1718089311418,1.044846,67663.0,67660.0,0.00086]
[1718089311638,0.023,67662.0,67660.0,0.14517993]
[1718089312104,0.22,67661.0,67660.0,0.14517993]
[1718089312357,0.023,67661.0,67660.0,0.16112995]
[1718089312774,0.023,67662.0,67660.0,0.16112995]
[1718089313408,0.494346,67663.0,67661.0,0.14431993]
[1718089313669,0.000946,67663.0,67662.0,0.016113]
[1718089313883,0.000946,67663.0,67662.0,0.16043293]
[1718089313884,0.214846,67663.0,67662.0,0.16043293]
[1718089314096,0.234846,67663.0,67662.0,0.16043293]
[1718089314517,0.214846,67663.0,67662.0,0.16043293]
[1718089315393,0.237846,67663.0,67662.0,0.16043293]
[1718089321811,0.237846,67663.0,67662.0,0.20711555]
[1718089321812,0.214846,67663.0,67662.0,0.20711555]
[1718089322062,0.214846,67663.0,67662.0,0.30711555]
[1718089322788,0.000946,67663.0,67662.0,0.69981555]
[1718089323227,0.000946,67663.0,67662.0,0.77329561]
[1718089323439,0.000946,67663.0,67662.0,0.38059561]
[1718089323852,0.000946,67663.0,67662.0,0.30711555]
[1718089324949,0.020946,67663.0,67662.0,0.30711555]
[1718089325209,0.694646,67663.0,67662.0,0.16043293]
[1718089325683,0.474646,67663.0,67662.0,0.16043293]
[1718089327198,0.474646,67663.0,67662.0,0.20711866]
[1718089327426,0.694646,67663.0,67662.0,0.20711866]
[1718089327657,0.908546,67663.0,67662.0,0.20711866]
[1718089327855,0.908546,67663.0,67662.0,0.16043293]
[1718089328078,0.98607896,67663.0,67660.0,0.00086]
[1718089328310,0.10053296,67662.0,67660.0,0.14517993]
[1718089328533,0.2339,67661.0,67660.0,0.14517993]
[1718089328749,0.2569,67661.0,67660.0,0.14517993]
[1718089329038,0.2369,67661.0,67660.0,0.14517993]
[1718089329254,0.2369,67661.0,67660.0,0.15969792]
[1718089330537,0.4569,67661.0,67660.0,0.15969792]
[1718089332062,0.2369,67661.0,67660.0,0.15969792]
[1718089333138,0.2569,67661.0,67660.0,0.15969792]
[1718089333366,0.2569,67661.0,67660.0,0.00086]
[1718089333614,0.4569,67661.0,67660.0,0.00086]
[1718089333844,0.07753296,67660.0,67647.0,0.04981975]
[1718089334061,0.51143296,67648.0,67647.0,0.04981975]
[1718089334273,0.53443296,67648.0,67647.0,0.06585612]
[1718089334478,0.53443296,67648.0,67638.0,0.04421758]
[1718089334479,0.02,67642.0,67638.0,0.04421758]
[1718089334715,0.02,67642.0,67630.0,0.01432029]
[1718089334716,0.02,67635.0,67634.0,0.04966655]
[1718089334947,0.02,67635.0,67634.0,0.19398648]
[1718089334948,0.4569,67635.0,67634.0,0.19398648]
[1718089335384,0.4569,67635.0,67634.0,0.14431993]
[1718089335589,0.4569,67635.0,67633.0,0.0174906]
[1718089335590,0.9113,67635.0,67630.0,0.01432029]
[1718089335804,0.22,67632.0,67631.0,0.19420293]
[1718089336021,0.243,67632.0,67631.0,0.19420293]
[1718089336934,0.24946427,67632.0,67631.0,0.19420293]
[1718089337635,0.24946427,67632.0,67631.0,0.049883]
[1718089337865,0.22,67631.0,67630.0,0.01432029]
[1718089338087,0.24963722,67631.0,67630.0,0.15864022]
[1718089338314,0.24963722,67631.0,67630.0,0.25864022]
[1718089339361,0.24963722,67631.0,67630.0,0.14431993]
[1718089339774,0.02,67627.0,67621.0,0.04977695]
[1718089339981,0.023,67626.0,67622.0,0.14431993]
[1718089340192,0.023,67626.0,67623.0,0.1]
[1718089340402,0.023,67626.0,67624.0,0.14431993]
[1718089340403,0.22663617,67625.0,67624.0,0.14431993]
[1718089340610,0.4569,67625.0,67624.0,0.24431993]
[1718089340828,0.46353722,67625.0,67624.0,0.27056076]
[1718089341262,0.26353722,67625.0,67624.0,0.27056076]
[1718089341467,0.46353722,67625.0,67624.0,0.27056076]
[1718089341673,0.26353722,67625.0,67624.0,0.27056076]
[1718089341888,0.46353722,67625.0,67624.0,0.27056076]
[1718089342096,0.26353722,67625.0,67624.0,0.27056076]
[1718089342539,0.24353722,67625.0,67624.0,0.27056076]
[1718089342968,0.26353722,67625.0,67624.0,0.27056076]
[1718089343171,0.46353722,67625.0,67624.0,0.27056076]
[1718089343577,0.46353722,67625.0,67624.0,0.02624083]
[1718089343791,0.46353722,67625.0,67609.0,0.4718]
[1718089343792,0.22,67616.0,67609.0,0.4718]
[1718089344042,0.4339,67616.0,67609.0,0.4718]
[1718089344254,0.44038067,67616.0,67609.0,0.4718]
[1718089344475,0.02,67615.0,67609.0,0.4718]
[1718089344689,0.02,67615.0,67610.0,0.19149993]
[1718089344690,0.043,67614.0,67610.0,0.19149993]
[1718089344900,0.2339,67611.0,67610.0,0.19149993]
[1718089345128,0.4569,67611.0,67610.0,0.19149993]
[1718089345343,0.4569,67611.0,67602.0,0.04962997]
[1718089345344,0.02,67608.0,67602.0,0.04962997]
[1718089345558,0.2139,67605.0,67603.0,0.14431993]
[1718089345778,0.2139,67605.0,67604.0,0.09953372]
[1718089345993,0.2139,67605.0,67604.0,0.31601361]
[1718089345994,0.2369,67605.0,67604.0,0.31601361]
[1718089346634,0.2369,67605.0,67604.0,0.34385365]
[1718089347071,0.4569,67605.0,67604.0,0.14431993]
[1718089347483,0.46351477,67605.0,67604.0,0.14431993]
[1718089347965,0.24351477,67605.0,67604.0,0.14431993]
[1718089348861,0.26351477,67605.0,67604.0,0.14431993]
[1718089349279,0.26351477,67605.0,67604.0,0.16018395]
[1718089349488,0.00661477,67605.0,67604.0,0.16018395]
[1718089349698,0.02,67615.0,67604.0,1.40918895]
[1718089349699,0.2139,67610.0,67604.0,1.40918895]
[1718089349917,0.02,67614.0,67605.0,0.24431993]
[1718089350139,0.02,67613.0,67605.0,0.34860266]
[1718089350365,0.2139,67609.0,67605.0,0.34860266]
[1718089350627,0.2139,67609.0,67606.0,0.01586402]
[1718089350834,0.2139,67609.0,67607.0,0.14431993]
[1718089351041,0.2139,67609.0,67608.0,0.1]
[1718089351257,0.2139,67609.0,67608.0,0.24431993]
[1718089351467,0.2369,67609.0,67608.0,0.24431993]
[1718089351731,0.4569,67609.0,67608.0,0.10031839]
[1718089351905,0.02,67603.0,67599.0,0.04957276]
[1718089352119,0.023,67609.0,67602.0,0.14431993]
[1718089352328,0.2139,67610.0,67608.0,0.07215996]
[1718089352550,0.02,67623.0,67608.0,0.07215996]
[1718089352551,0.07753296,67621.0,67609.0,0.755]
[1718089352758,0.2139,67616.0,67610.0,0.24431993]
[1718089353797,0.2139,67611.0,67610.0,0.24431993]
[1718089353990,0.2139,67612.0,67610.0,0.39677845]
[1718089354201,0.2139,67612.0,67610.0,1.22217645]
[1718089354620,0.2139,67612.0,67610.0,0.39677845]
[1718089354831,0.2139,67617.0,67610.0,0.49677845]
[1718089355063,0.07753296,67635.0,67616.0,0.14431993]
[1718089355257,0.2,67641.0,67625.0,0.07215996]
[1718089355258,0.43295979,67631.0,67625.0,0.07215996]
[1718089355483,0.2139,67633.0,67626.0,0.14431993]
[1718089355674,0.2139,67633.0,67627.0,0.1]
[1718089355876,0.2139,67633.0,67628.0,0.16973613]
[1718089356087,0.2139,67633.0,67629.0,0.1]
[1718089356315,0.2139,67633.0,67630.0,0.14431993]
[1718089356746,0.43295979,67662.0,67644.0,0.1]
[1718089356968,0.2139,67648.0,67645.0,0.7531]
[1718089357179,0.2139,67648.0,67646.0,0.1]
[1718089357379,0.2139,67648.0,67646.0,0.2]
[1718089357593,0.07753296,67661.0,67647.0,0.14431993]
[1718089357594,0.2139,67654.0,67647.0,0.14431993]
[1718089357800,0.2139,67660.0,67648.0,0.18029856]
[1718089358052,0.000946,67663.0,67648.0,0.18029856]
[1718089358053,0.000946,67663.0,67652.0,0.1]
[1718089358274,0.000946,67663.0,67653.0,0.14431993]
[1718089358510,0.000946,67663.0,67654.0,0.1]
[1718089358726,0.000946,67663.0,67656.0,0.7898]
[1718089358936,0.000946,67663.0,67657.0,0.25875192]
[1718089359141,0.000946,67663.0,67657.0,1.30251392]
[1718089359396,0.02,67660.0,67657.0,0.25875192]
[1718089359608,0.000946,67663.0,67657.0,0.25875192]
[1718089360930,0.000946,67663.0,67659.0,0.14431993]
[1718089361136,0.000946,67663.0,67660.0,0.1254162]
[1718089361336,0.02,67662.0,67661.0,0.14431993]
[1718089361549,0.000946,67663.0,67661.0,0.24431993]
[1718089361751,0.000946,67663.0,67662.0,0.1]
[1718089361967,0.220946,67663.0,67662.0,0.24431993]
[1718089362183,0.220946,67663.0,67662.0,0.27416877]
[1718089362409,0.220946,67663.0,67662.0,0.12984884]
[1718089362629,0.243946,67663.0,67662.0,0.1]
[1718089362848,0.243946,67663.0,67658.0,0.01432029]
[1718089362849,0.043946,67663.0,67658.0,0.01432029]
[1718089363056,0.043,67662.0,67659.0,0.14431993]
[1718089363301,0.043,67662.0,67660.0,0.11586402]
[1718089363510,0.043,67662.0,67661.0,0.14431993]
[1718089363710,0.29753296,67661.0,67660.0,0.01586402]
[1718089363932,0.22,67659.0,67658.0,0.01432029]
[1718089364140,0.243,67659.0,67658.0,0.01432029]
[1718089365254,0.243,67659.0,67649.0,0.04971878]
[1718089365255,0.22,67650.0,67649.0,0.04971878]
[1718089365465,0.4874,67650.0,67649.0,0.04971878]
[1718089365708,0.4874,67650.0,67644.0,0.01432029]
[1718089365709,0.79642204,67650.0,67644.0,0.01432029]
[1718089365978,0.22,67645.0,67644.0,0.01432029]
[1718089366367,0.24995547,67645.0,67644.0,0.01432029]
[1718089366615,0.24995547,67645.0,67631.0,0.04907383]